[Event "Asian Amateur-ch Open 2022"]
[Site "Muscat"]
[Date "2022.10.02"]
[Round "4.18"]
[White "Al Darwashi, Usama"]
[Black "Ferzli, Dany Michael"]
[Result "0-1"]
[ECO "D23"]
[WhiteElo "1489"]
[BlackElo "1789"]
[Annotator "NA RC COMBH"]
[PlyCount "141"]
[EventDate "2022.09.29"]
[EventType "swiss"]
[SourceTitle "playchess.com"]
[Source "ChessBase"]
[SourceQuality "1"]
[TimeControl "5400+30"]

1. d4 {[%emt 0:00:03]} d5 {[%emt 0:00:13]} 2. Nf3 {[%emt 0:00:35]} Nf6 {[%emt 0:00:09]} 3. c4 {[%emt 0:00:35]} dxc4 {[%emt 1:31:38]} 4. Qa4+ {[%emt 0:00:50]} Nbd7 {[%emt 0:00:00]} 5. g3 {[%emt 0:01:22]} a6 {[%emt 0:00:00]} 6. Qxc4 {[%emt 0:00:11]} b5 {[%emt 0:00:00]} 7. Qc6 {[%emt 0:04:40]} Rb8 {[%emt 0:00:00]} 8. Bf4 {[%emt 0:01:34]} Bb7 {[%emt 0:00:00]} 9. Qxc7 {[%emt 0:02:05]} Qxc7 {[%emt 0:00:00]} 10. Bxc7 {[%emt 0:00:07]} Rc8 {[%emt 0:00:00]} 11. Ba5 {[%emt 0:01:51]} Rc1+ {[%emt 0:00:00]} 12. Kd2 {[%emt 0:00:38]} Rc8 {[%emt 0:00:00]} 13. Nc3 {[%emt 0:07:23]} e5 {[%emt 0:00:00]} 14. dxe5 {[%emt 0:15:52]} Nxe5 {[%emt 0:00:00]} 15. Nxe5 {[%emt 0:05:03]} Bxh1 {[%emt 0:00:00]} 16. Bh3 {[%emt 0:00:21]} Rc5 {[%emt 0:00:00]} 17. Nd3 {[%emt 0:09:31]} Rh5 {[%emt 0:00:00]} 18. Nf4 {[%emt 0:00:55]} Rg5 {[%emt 0:00:00]} 19. Rxh1 {[%emt 0:04:04]} b4 {[%emt 0:00:00]} 20. Bb6 {[%emt 0:01:43]} bxc3+ {[%emt 0:00:00]} 21. bxc3 {[%emt 0:02:37]} Be7 {[%emt 0:00:00]} 22. Rb1 {[%emt 0:02:33]} O-O {[%emt 0:00:00]} 23. Bd4 {[%emt 0:02:50]} Rd8 {[%emt 0:00:00]} 24. Kc2 {[%emt 0:05:03]} Nd5 {[%emt 0:00:00]} 25. Nd3 {[%emt 0:06:06]} Bf6 {[%emt 0:00:00]} 26. Bg2 {[%emt 0:05:00]} Bxd4 {[%emt 0:00:00]} 27. cxd4 {[%emt 0:00:03]} Nc7 {[%emt 0:00:00]} 28. Rb7 {[%emt 0:03:31]} Nb5 {[%emt 0:00:00]} 29. e3 {[%emt 0:00:53]} Nd6 {[%emt 0:00:00]} 30. Rb6 {[%emt 0:03:02]} Ra5 {[%emt 0:00:00]} 31. Kb3 {[%emt 0:03:45]} Rb5+ {[%emt 0:00:00]} 32. Rxb5 {[%emt 0:00:06]} Nxb5 {[%emt 0:00:00]} 33. Kb4 {[%emt 0:01:35]} Rb8 {[%emt 0:00:00]} 34. d5 {[%emt 0:02:37]} f6 {[%emt 0:00:00]} 35. Kc5 {[%emt 0:03:22]} Kf8 {[%emt 0:00:16]} 36. Nb4 {[%emt 0:02:02]} Nc7 {[%emt 0:06:20]} 37. Nc6 {[%emt 0:02:27]} Rb5+ {[%emt 0:02:27]} 38. Kd6 {[%emt 0:01:15]} Ne8+ {[%emt 0:00:09]} 39. Kd7 {[%emt 0:00:23]} Rb7+ {[%emt 0:00:39]} 40. Kd8 {[%emt 0:00:39]} Rb2 {[%emt 0:00:10]} 41. Bh3 {[%emt 0:00:55]} Rxf2 {[%emt 0:00:53]} 42. Nd4 {[%emt 0:00:42]} Rd2 {[%emt 0:01:26]} 43. Bd7 {[%emt 0:00:39]} Nd6 {[%emt 0:00:21]} 44. Ne6+ {[%emt 0:00:26]} Kf7 {[%emt 0:00:12]} 45. Bc6 {[%emt 0:00:35]} Rxa2 {[%emt 0:00:48]} 46. Kd7 {[%emt 0:00:14]} Nf5 {[%emt 0:00:21]} 47. e4 {[%emt 0:00:29]} Ne3 {[%emt 0:00:42]} 48. Nc5 {[%emt 0:00:39]} Nc4 {[%emt 0:00:58]} 49. Nb7 {[%emt 0:00:32]} Ne5+ {[%emt 0:00:24]} 50. Kd6 {[%emt 0:00:25]} Rxh2 {[%emt 0:00:29]} 51. Kc7 {[%emt 0:00:36]} Rc2 {[%emt 0:01:11]} 52. Nd8+ {[%emt 0:00:27]} Kg6 {[%emt 0:01:54]} 53. d6 {[%emt 0:00:18]} a5 {[%emt 0:00:20]} 54. Kb6 {[%emt 0:00:33]} Nc4+ {[%emt 0:01:34]} 55. Kc7 {[%emt 0:00:23]} Nxd6 {[%emt 0:00:54]} 56. Kxd6 {[%emt 0:00:02]} Rd2+ {[%emt 0:00:27]} 57. Kc7 {[%emt 0:00:59]} Rc2 {[%emt 0:02:10]} 58. Kb6 {[%emt 0:00:23]} Rc3 {[%emt 0:00:23]} 59. Be8+ {[%emt 0:00:58]} Kg5 {[%emt 0:00:09]} 60. Ne6+ {[%emt 0:00:28]} Kh6 {[%emt 0:00:39]} 61. g4 {[%emt 0:00:31]} Rg3 {[%emt 0:00:49]} 62. g5+ {[%emt 0:00:03]} fxg5 {[%emt 0:00:13]} 63. Nd4 {[%emt 0:00:14]} g6 {[%emt 0:00:29]} 64. Kxa5 {[%emt 0:00:20]} Re3 {[%emt 0:00:21]} 65. Bc6 {[%emt 0:00:28]} g4 {[%emt 0:00:12]} 66. Ne6 {[%emt 0:00:15]} g5 {[%emt 0:00:33]} 67. Nd4 {[%emt 0:00:17]} Kg6 {[%emt 0:01:07]} 68. Nf5 {[%emt 0:01:48]} Re1 {[%emt 0:00:42]} 69. Kb4 {[%emt 0:00:28]} h5 {[%emt 0:00:18]} 70. Be8+ {[%emt 0:00:13]} Kf6 {[%emt 0:00:11]} 71. Kc4 {[%emt 0:01:28]} 0-1

[Event "Asian Amateur-ch Open 2022"]
[Site "Muscat"]
[Date "2022.10.02"]
[Round "4.19"]
[White "Al Abdali, Zeyad Saleh"]
[Black "Fadhil, khalid Ali"]
[Result "1/2-1/2"]
[ECO "D15"]
[WhiteElo "1780"]
[BlackElo "1451"]
[Annotator "NA RC COMBH"]
[PlyCount "129"]
[EventDate "2022.09.29"]
[EventType "swiss"]
[SourceTitle "playchess.com"]
[Source "ChessBase"]
[SourceQuality "1"]
[TimeControl "5400+30"]

1. d4 {[%emt 0:04:02]} d5 2. c4 {[%emt 0:00:30]} c6 {[%emt 0:02:25]} 3. Nc3 {[%emt 0:00:30]} Nf6 4. Nf3 {[%emt 0:00:30]} Bg4 {[%emt 0:01:00]} 5. Ne5 {[%emt 0:00:30]} Bf5 {[%emt 0:00:30]} 6. cxd5 {[%emt 0:00:30]} Nxd5 {[%emt 0:00:30]} 7. e4 {[%emt 0:00:30]} Nxc3 {[%emt 0:00:30]} 8. bxc3 {[%emt 0:00:30]} Bg6 {[%emt 0:00:30]} 9. Qb3 {[%emt 0:11:19]} Qb6 {[%emt 0:08:09]} 10. Nc4 {[%emt 0:00:30]} Qxb3 {[%emt 0:00:30]} 11. axb3 {[%emt 0:02:49]} Nd7 {[%emt 0:00:44]} 12. Bd3 {[%emt 0:03:30]} f6 {[%emt 0:02:51]} 13. Ba3 {[%emt 0:08:58]} a6 {[%emt 0:04:51]} 14. f4 {[%emt 0:05:49]} Bf7 {[%emt 0:00:54]} 15. Nd2 {[%emt 0:05:00]} e6 {[%emt 0:01:47]} 16. Bxf8 {[%emt 0:01:55]} Rxf8 {[%emt 0:01:32]} 17. e5 {[%emt 0:05:05]} Nb6 {[%emt 0:03:01]} 18. O-O {[%emt 0:03:35]} f5 {[%emt 0:02:31]} 19. Bc4 {[%emt 0:10:35]} Ke7 {[%emt 0:03:11]} 20. g3 {[%emt 0:02:02]} Rfd8 {[%emt 0:03:52]} 21. Rfd1 {[%emt 0:00:47]} Bh5 {[%emt 0:00:16]} 22. Re1 {[%emt 0:04:27]} c5 {[%emt 0:03:02]} 23. dxc5 {[%emt 0:01:17]} Rxd2 {[%emt 0:00:01]} 24. cxb6 {[%emt 0:00:19]} Bf3 {[%emt 0:01:00]} 25. Bf1 {[%emt 0:02:46]} Rad8 {[%emt 0:00:44]} 26. Re3 {[%emt 0:00:41]} Be4 {[%emt 0:01:58]} 27. Rc1 {[%emt 0:04:11]} Rb2 {[%emt 0:00:28]} 28. c4 {[%emt 0:13:38]} Rdd2 {[%emt 0:00:24]} 29. Rxe4 {[%emt 0:01:12]} fxe4 {[%emt 0:00:02]} 30. c5 {[%emt 0:01:04]} Rbc2 {[%emt 0:03:34]} 31. Rxc2 {[%emt 0:01:08]} Rxc2 {[%emt 0:00:02]} 32. Bxa6 {[%emt 0:00:21]} Rxc5 {[%emt 0:00:29]} 33. Bxb7 {[%emt 0:00:16]} Rb5 {[%emt 0:00:03]} 34. Bxe4 {[%emt 0:00:15]} Rxb6 {[%emt 0:00:01]} 35. Bxh7 {[%emt 0:02:19]} Rxb3 {[%emt 0:00:01]} 36. Kg2 {[%emt 0:00:18]} Kf7 {[%emt 0:00:39]} 37. Be4 {[%emt 0:00:13]} Re3 {[%emt 0:00:17]} 38. Bc6 {[%emt 0:00:15]} Kg6 {[%emt 0:00:21]} 39. g4 {[%emt 0:00:50]} Kf7 {[%emt 0:01:00]} 40. h4 {[%emt 0:00:17]} Rc3 {[%emt 0:00:10]} 41. Be4 {[%emt 0:01:33]} Re3 {[%emt 0:00:14]} 42. Bf3 {[%emt 0:00:18]} Ra3 {[%emt 0:00:08]} 43. h5 {[%emt 0:00:12]} Rc3 {[%emt 0:57:48]} 44. Be4 {[%emt 0:05:14]} Re3 {[%emt 0:00:00]} 45. Bg6+ {[%emt 0:00:00]} Ke7 {[%emt 0:00:00]} 46. Kf2 {[%emt 0:00:00]} Ra3 {[%emt 0:00:00]} 47. Be4 {[%emt 0:00:00]} Rb3 {[%emt 0:00:00]} 48. Bf3 {[%emt 0:00:00]} Kf7 {[%emt 0:00:00]} 49. Kg3 {[%emt 0:00:00]} Re3 {[%emt 0:00:00]} 50. Kf2 {[%emt 0:00:27]} Ra3 {[%emt 0:00:00]} 51. Be4 {[%emt 0:00:22]} Rb3 {[%emt 0:00:00]} 52. Bg6+ {[%emt 0:00:07]} Ke7 {[%emt 0:00:00]} 53. Kg2 {[%emt 0:01:03]} Re3 {[%emt 0:00:00]} 54. g5 {[%emt 0:00:18]} Ra3 {[%emt 0:00:00]} 55. h6 {[%emt 0:01:02]} gxh6 {[%emt 0:00:00]} 56. gxh6 {[%emt 0:00:02]} Kf8 {[%emt 0:00:00]} 57. Kh2 {[%emt 0:00:43]} Kg8 {[%emt 0:00:00]} 58. Kg2 {[%emt 0:00:43]} Rb3 {[%emt 0:00:00]} 59. f5 {[%emt 0:01:04]} exf5 {[%emt 0:00:00]} 60. Bxf5 {[%emt 0:00:03]} Rb5 {[%emt 0:00:00]} 61. h7+ {[%emt 0:01:10]} Kg7 {[%emt 0:00:00]} 62. Kf3 {[%emt 0:00:31]} Rxe5 {[%emt 0:00:00]} 63. Kf4 {[%emt 0:00:14]} Re1 {[%emt 0:00:00]} 64. Bd3 {[%emt 0:00:10]} Rd1 {[%emt 0:00:00]} 65. Be4 {[%emt 0:00:16]} 1/2-1/2

[Event "Asian Amateur-ch Open 2022"]
[Site "Muscat"]
[Date "2022.10.02"]
[Round "4.20"]
[White "Jaradat, Othman"]
[Black "Al Mamari Mohammed Salim"]
[Result "1-0"]
[ECO "B75"]
[WhiteElo "1751"]
[BlackElo "1685"]
[Annotator "NA RC COMBH"]
[PlyCount "97"]
[EventDate "2022.09.29"]
[EventType "swiss"]
[SourceTitle "playchess.com"]
[Source "ChessBase"]
[SourceQuality "1"]
[TimeControl "5400+30"]

1. e4 {[%emt 0:00:03]} c5 {[%emt 0:01:35]} 2. Nf3 {[%emt 0:00:13]} d6 {[%emt 0:00:40]} 3. d4 {[%emt 0:00:08]} cxd4 {[%emt 0:00:05]} 4. Nxd4 {[%emt 0:00:07]} Nf6 {[%emt 0:00:12]} 5. Nc3 {[%emt 0:00:10]} g6 {[%emt 0:00:29]} 6. Be3 {[%emt 0:02:18]} Bg7 {[%emt 0:02:03]} 7. f3 {[%emt 0:00:14]} a6 {[%emt 0:01:12]} 8. Qd2 {[%emt 0:01:01]} b5 {[%emt 0:07:36]} 9. O-O-O {[%emt 0:01:17]} Bb7 {[%emt 0:02:57]} 10. g4 {[%emt 0:01:37]} h5 {[%emt 0:08:02]} 11. gxh5 {[%emt 0:05:09]} Nxh5 {[%emt 0:03:13]} 12. Nce2 {[%emt 0:04:14]} Nd7 {[%emt 0:02:26]} 13. Kb1 {[%emt 0:06:11]} Ne5 {[%emt 0:04:10]} 14. Nf4 {[%emt 0:03:28]} Nxf4 {[%emt 0:06:27]} 15. Bxf4 {[%emt 0:00:36]} Rc8 {[%emt 0:04:44]} 16. h4 {[%emt 0:18:10]} Nc4 {[%emt 0:08:53]} 17. Bxc4 {[%emt 0:03:08]} Rxc4 {[%emt 0:02:02]} 18. Be3 {[%emt 0:00:19]} Rh5 {[%emt 0:05:46]} 19. Qg2 {[%emt 0:09:32]} Bxd4 {[%emt 0:11:48]} 20. Bxd4 {[%emt 0:01:19]} a5 {[%emt 0:07:02]} 21. b3 {[%emt 0:09:16]} Rc8 {[%emt 0:04:10]} 22. Qe2 {[%emt 0:04:49]} Qc7 {[%emt 0:05:16]} 23. Be3 {[%emt 0:01:52]} b4 {[%emt 0:01:31]} 24. Rdg1 {[%emt 0:09:45]} d5 {[%emt 0:03:06]} 25. Rg5 {[%emt 0:18:04]} dxe4 {[%emt 0:00:42]} 26. Rxh5 {[%emt 0:00:00]} gxh5 {[%emt 0:00:05]} 27. f4 {[%emt 0:00:00]} Qc6 {[%emt 0:00:40]} 28. Rg1 {[%emt 0:01:30]} Ba6 {[%emt 0:03:23]} 29. Qd2 {[%emt 0:00:00]} f6 {[%emt 0:01:45]} 30. Qd1 {[%emt 0:00:00]} Qc3 {[%emt 0:02:00]} 31. Bd4 {[%emt 0:00:00]} Qc6 {[%emt 0:00:45]} 32. Qxh5+ {[%emt 0:00:00]} Kd7 {[%emt 0:00:22]} 33. Qd1 {[%emt 0:00:00]} Kc7 {[%emt 0:01:53]} 34. Bb2 {[%emt 0:00:06]} Qd6 {[%emt 0:00:00]} 35. Qh5 {[%emt 0:02:08]} Kb6 {[%emt 0:00:15]} 36. Rd1 {[%emt 0:00:32]} Qc6 {[%emt 0:00:18]} 37. Rc1 {[%emt 0:00:55]} e3 {[%emt 0:00:11]} 38. Bd4+ {[%emt 0:00:20]} Kb7 {[%emt 0:00:02]} 39. Bxe3 {[%emt 0:00:22]} Bd3 {[%emt 0:00:31]} 40. cxd3 {[%emt 0:00:42]} Qa6 {[%emt 0:00:47]} 41. Qd5+ {[%emt 0:00:27]} Kb8 {[%emt 0:00:58]} 42. Rxc8+ {[%emt 0:00:18]} Qxc8 {[%emt 0:00:02]} 43. Qb5+ {[%emt 0:00:08]} Kc7 {[%emt 0:00:37]} 44. Qc5+ {[%emt 0:00:09]} Kd7 {[%emt 0:00:02]} 45. Qxc8+ {[%emt 0:00:01]} Kxc8 {[%emt 0:00:01]} 46. Bb6 {[%emt 0:00:03]} Kd7 {[%emt 0:00:04]} 47. Bxa5 {[%emt 0:00:03]} Ke6 {[%emt 0:00:01]} 48. Bxb4 {[%emt 0:00:04]} Kf5 {[%emt 0:00:03]} 49. Bxe7 {[%emt 0:00:04]} 1-0

[Event "Asian Amateur-ch Open 2022"]
[Site "Muscat"]
[Date "2022.10.02"]
[Round "4.21"]
[White "Krishanu Sai"]
[Black "Humaidan Mohamed, Alzaabi"]
[Result "0-1"]
[ECO "A48"]
[WhiteElo "1748"]
[BlackElo "1393"]
[Annotator "NA RC COMBH"]
[PlyCount "42"]
[EventDate "2022.09.29"]
[EventType "swiss"]
[SourceTitle "playchess.com"]
[Source "ChessBase"]
[SourceQuality "1"]
[TimeControl "5400+30"]

1. d4 {[%emt 0:00:02]} Nf6 {[%emt 0:00:49]} 2. Nf3 {[%emt 0:00:08]} g6 {[%emt 0:00:12]} 3. Bf4 {[%emt 0:01:01]} d6 {[%emt 0:00:22]} 4. Nbd2 {[%emt 0:00:34]} Nbd7 {[%emt 0:02:23]} 5. e4 {[%emt 0:00:58]} Bg7 {[%emt 0:00:32]} 6. c3 {[%emt 0:00:23]} O-O {[%emt 0:06:58]} 7. Bd3 {[%emt 0:01:04]} h6 {[%emt 0:02:35]} 8. Qc2 {[%emt 0:06:02]} Nh5 {[%emt 0:00:28]} 9. Be3 {[%emt 0:01:18]} e5 {[%emt 0:00:53]} 10. g3 {[%emt 0:03:00]} Qe7 {[%emt 0:05:13]} 11. dxe5 {[%emt 0:10:14]} dxe5 {[%emt 0:00:53]} 12. O-O-O {[%emt 0:01:17]} Nc5 {[%emt 0:02:00]} 13. Be2 {[%emt 0:02:55]} Be6 {[%emt 0:00:39]} 14. Nc4 {[%emt 0:01:24]} b5 {[%emt 0:01:36]} 15. Ncxe5 {[%emt 0:09:13]} Bxa2 {[%emt 0:04:10]} 16. Bxc5 {[%emt 0:02:44]} Qxc5 {[%emt 0:00:14]} 17. Nd7 {[%emt 0:00:15]} Qxf2 {[%emt 0:01:09]} 18. Nxf8 {[%emt 0:00:20]} Bxf8 {[%emt 0:00:05]} 19. Rhf1 {[%emt 0:01:54]} Qe3+ {[%emt 0:00:19]} 20. Qd2 {[%emt 0:00:40]} Qxe4 {[%emt 0:00:18]} 21. Nd4 {[%emt 0:04:21]} Qb1# {[%emt 0:00:02]} 0-1

[Event "Asian Amateur-ch Open 2022"]
[Site "Muscat"]
[Date "2022.10.02"]
[Round "4.22"]
[White "Ranjith, R.k."]
[Black "Al Balushi, Salim"]
[Result "1-0"]
[ECO "B12"]
[WhiteElo "1706"]
[BlackElo "1374"]
[Annotator "NA RC COMBH"]
[PlyCount "64"]
[EventDate "2022.09.29"]
[EventType "swiss"]
[SourceTitle "playchess.com"]
[Source "ChessBase"]
[SourceQuality "1"]
[TimeControl "5400+30"]

1. e4 {[%emt 0:08:23]} d6 {[%emt 0:06:41]} 2. d4 {[%emt 0:00:30]} c6 {[%emt 0:00:30]} 3. Nc3 {[%emt 0:00:30]} Qc7 {[%emt 0:00:30]} 4. f4 {[%emt 0:00:30]} e5 {[%emt 0:00:30]} 5. Nf3 {[%emt 0:00:30]} Bg4 {[%emt 0:00:30]} 6. Be2 {[%emt 0:00:30]} Nd7 {[%emt 0:00:30]} 7. Be3 {[%emt 0:00:30]} Ngf6 {[%emt 0:00:30]} 8. h3 {[%emt 0:00:30]} Bxf3 {[%emt 0:00:30]} 9. Bxf3 {[%emt 0:00:30]} a5 {[%emt 0:00:30]} 10. a4 {[%emt 0:00:30]} Be7 {[%emt 0:00:30]} 11. Qe2 {[%emt 0:00:30]} O-O {[%emt 0:00:30]} 12. g4 {[%emt 0:00:30]} exf4 {[%emt 0:00:30]} 13. Bxf4 {[%emt 0:00:30]} Qb6 {[%emt 0:00:30]} 14. O-O-O {[%emt 0:00:30]} Qb4 {[%emt 0:00:30]} 15. Bd2 {[%emt 0:00:30]} Nb6 {[%emt 0:00:30]} 16. Nd5 {[%emt 0:00:30]} Qxa4 {[%emt 0:00:30]} 17. Nxe7+ {[%emt 0:00:30]} Kh8 {[%emt 0:00:30]} 18. Bc3 {[%emt 0:00:30]} Nc4 {[%emt 0:00:30]} 19. b3 {[%emt 0:00:30]} Qa3+ {[%emt 0:00:30]} 20. Kb1 {[%emt 0:00:30]} d5 {[%emt 0:00:30]} 21. exd5 {[%emt 0:00:30]} cxd5 {[%emt 0:00:30]} 22. Nxd5 {[%emt 0:00:30]} Nxd5 {[%emt 0:00:30]} 23. Bxd5 {[%emt 0:00:30]} Nb6 {[%emt 0:00:30]} 24. Qb5 {[%emt 0:00:30]} Nxd5 {[%emt 0:00:30]} 25. Qxd5 {[%emt 0:00:30]} b6 {[%emt 0:00:30]} 26. Rhe1 {[%emt 0:00:30]} a4 {[%emt 0:00:30]} 27. Bb2 {[%emt 0:00:30]} Qb4 {[%emt 0:00:30]} 28. c3 {[%emt 0:00:30]} Qxb3 {[%emt 0:00:30]} 29. Qxb3 {[%emt 0:00:30]} axb3 {[%emt 0:00:30]} 30. Re5 {[%emt 0:00:30]} Ra5 {[%emt 0:00:30]} 31. Rde1 {[%emt 0:00:30]} b5 {[%emt 0:00:30]} 32. Re8 {[%emt 0:00:30]} Kg8 {[%emt 0:00:30]} 1-0

[Event "Asian Amateur-ch Open 2022"]
[Site "Muscat"]
[Date "2022.10.02"]
[Round "4.23"]
[White "Al Amri, Mohammed A"]
[Black "Al Nofli, Mohammed Saif"]
[Result "1-0"]
[ECO "C30"]
[WhiteElo "1693"]
[BlackElo "1370"]
[Annotator "NA RC COMBH"]
[PlyCount "51"]
[EventDate "2022.09.29"]
[EventType "swiss"]
[SourceTitle "playchess.com"]
[Source "ChessBase"]
[SourceQuality "1"]
[TimeControl "5400+30"]

1. e4 {[%emt 0:07:06]} e5 {[%emt 0:00:10]} 2. Nc3 {[%emt 0:00:02]} Nf6 {[%emt 0:01:32]} 3. f4 {[%emt 0:00:11]} Nc6 {[%emt 0:01:02]} 4. Nf3 {[%emt 0:00:55]} d6 {[%emt 0:01:46]} 5. Bb5 {[%emt 0:00:23]} Bg4 {[%emt 0:03:06]} 6. d3 {[%emt 0:00:13]} a6 {[%emt 0:01:25]} 7. Bxc6+ {[%emt 0:00:03]} bxc6 {[%emt 0:00:24]} 8. fxe5 {[%emt 0:00:02]} dxe5 {[%emt 0:01:25]} 9. h3 {[%emt 0:03:16]} Bxf3 {[%emt 0:03:36]} 10. Qxf3 {[%emt 0:00:05]} h6 {[%emt 0:11:28]} 11. O-O {[%emt 0:00:29]} Qd6 {[%emt 0:08:28]} 12. Kh1 {[%emt 0:00:17]} Be7 {[%emt 0:01:16]} 13. Ne2 {[%emt 0:00:07]} O-O-O {[%emt 1:01:22]} 14. Ng3 {[%emt 0:02:47]} g6 {[%emt 0:00:00]} 15. Be3 {[%emt 0:00:14]} Rdf8 {[%emt 0:00:00]} 16. b4 {[%emt 0:00:57]} Qxb4 {[%emt 0:00:00]} 17. Rab1 {[%emt 0:00:28]} Qa4 {[%emt 0:00:00]} 18. Rb3 {[%emt 0:01:13]} Qxa2 {[%emt 0:00:00]} 19. Qe2 {[%emt 0:00:34]} a5 {[%emt 0:00:00]} 20. d4 {[%emt 0:00:16]} a4 {[%emt 0:00:00]} 21. Rbb1 {[%emt 0:02:20]} Qe6 {[%emt 0:00:00]} 22. dxe5 {[%emt 0:00:26]} Qxe5 {[%emt 0:00:00]} 23. Bf4 {[%emt 0:00:30]} Qa5 {[%emt 0:00:00]} 24. e5 {[%emt 0:00:36]} Nd5 {[%emt 0:00:00]} 25. Qg4+ {[%emt 0:00:25]} f5 {[%emt 0:00:00]} 26. exf6+ {[%emt 0:00:04]} 1-0

[Event "Asian Amateur-ch Open 2022"]
[Site "Muscat"]
[Date "2022.10.02"]
[Round "4.24"]
[White "kloub.M"]
[Black "Salem Muhsan Shuaib"]
[Result "1/2-1/2"]
[ECO "E32"]
[WhiteElo "1687"]
[BlackElo "1227"]
[Annotator "NA RC COMBH"]
[PlyCount "58"]
[EventDate "2022.09.29"]
[EventType "swiss"]
[SourceTitle "playchess.com"]
[Source "ChessBase"]
[SourceQuality "1"]
[TimeControl "5400+30"]

1. d4 {[%emt 0:00:10]} Nf6 {[%emt 0:00:08]} 2. c4 {[%emt 0:00:22]} e6 {[%emt 0:00:11]} 3. Nc3 {[%emt 0:00:19]} Bb4 {[%emt 0:00:24]} 4. Qc2 {[%emt 0:03:30]} O-O {[%emt 0:03:06]} 5. g3 {[%emt 0:00:43]} Nc6 {[%emt 0:02:25]} 6. Nf3 {[%emt 0:00:19]} d5 {[%emt 0:01:31]} 7. a3 {[%emt 0:03:25]} Be7 {[%emt 0:01:55]} 8. Bg2 {[%emt 0:01:03]} dxc4 {[%emt 0:03:13]} 9. e3 {[%emt 0:15:57]} Re8 {[%emt 0:07:41]} 10. O-O {[%emt 0:00:15]} Bf8 {[%emt 0:05:00]} 11. Rd1 {[%emt 0:01:23]} Qe7 {[%emt 0:02:31]} 12. Qa4 {[%emt 0:07:39]} Bd7 {[%emt 0:06:35]} 13. Qxc4 {[%emt 0:00:54]} Rad8 {[%emt 0:08:11]} 14. e4 {[%emt 0:09:56]} Bc8 {[%emt 0:03:20]} 15. Bf4 {[%emt 0:06:15]} Rd7 {[%emt 0:08:02]} 16. d5 {[%emt 0:11:09]} exd5 {[%emt 0:01:59]} 17. Nxd5 {[%emt 0:01:25]} Nxd5 {[%emt 0:05:44]} 18. exd5 {[%emt 0:00:37]} Na5 {[%emt 0:01:09]} 19. Qa4 {[%emt 0:03:47]} b6 {[%emt 0:01:34]} 20. Bh3 {[%emt 0:05:32]} Rdd8 {[%emt 0:01:46]} 21. Bxc8 {[%emt 0:04:53]} Rxc8 {[%emt 0:00:02]} 22. Re1 {[%emt 0:00:17]} Qd8 {[%emt 0:00:46]} 23. Rxe8 {[%emt 0:03:38]} Qxe8 {[%emt 0:00:01]} 24. Qxe8 {[%emt 0:00:10]} Rxe8 {[%emt 0:00:02]} 25. Bxc7 {[%emt 0:00:02]} Rc8 {[%emt 0:01:42]} 26. d6 {[%emt 0:00:47]} Nb7 {[%emt 0:00:46]} 27. Rd1 {[%emt 0:00:39]} Nxd6 {[%emt 0:01:26]} 28. Bxd6 {[%emt 0:06:34]} Rd8 {[%emt 0:00:01]} 29. Ne5 {[%emt 0:01:14]} Rxd6 {[%emt 0:33:49]} 1/2-1/2

[Event "Asian Amateur-ch Open 2022"]
[Site "Muscat"]
[Date "2022.10.02"]
[Round "4.25"]
[White "Hamdan Edrees, Alhamed"]
[Black "Al Mamari Mohammed Salim"]
[Result "1-0"]
[ECO "B06"]
[WhiteElo "1467"]
[BlackElo "1685"]
[Annotator "NA RC COMBH"]
[PlyCount "69"]
[EventDate "2022.09.29"]
[EventType "swiss"]
[SourceTitle "playchess.com"]
[Source "ChessBase"]
[SourceQuality "1"]
[TimeControl "5400+30"]

1. e4 {[%emt 0:00:02]} d6 {[%emt 0:01:22]} 2. d4 {[%emt 0:00:48]} Nd7 {[%emt 0:00:39]} 3. Nf3 {[%emt 0:01:49]} g6 {[%emt 0:00:13]} 4. Bc4 {[%emt 0:02:56]} Bg7 {[%emt 0:02:16]} 5. Bxf7+ {[%emt 0:02:46]} Kxf7 {[%emt 0:00:14]} 6. Ng5+ {[%emt 0:00:05]} Ke8 {[%emt 0:03:33]} 7. Ne6 {[%emt 0:00:33]} Ngf6 {[%emt 0:00:28]} 8. Nxd8 {[%emt 0:00:10]} Kxd8 {[%emt 0:00:14]} 9. Nc3 {[%emt 0:00:12]} Rf8 {[%emt 0:02:01]} 10. O-O {[%emt 0:00:29]} c6 {[%emt 0:00:48]} 11. e5 {[%emt 0:02:22]} Ne8 {[%emt 0:01:37]} 12. f4 {[%emt 0:01:54]} Kc7 {[%emt 0:13:27]} 13. Ne4 {[%emt 0:00:21]} d5 {[%emt 1:10:08]} 14. Ng5 {[%emt 0:00:20]} Nb6 {[%emt 0:00:00]} 15. Nxh7 {[%emt 0:00:49]} Rh8 {[%emt 0:00:00]} 16. Ng5 {[%emt 0:00:10]} Bf5 {[%emt 0:00:00]} 17. g4 {[%emt 0:00:26]} Bc8 {[%emt 0:00:00]} 18. h3 {[%emt 0:00:06]} e6 {[%emt 0:00:00]} 19. Qd3 {[%emt 0:00:18]} Bh6 {[%emt 0:00:00]} 20. Nf7 {[%emt 0:00:35]} Rh7 {[%emt 0:00:00]} 21. Qxg6 {[%emt 0:00:17]} Rg7 {[%emt 0:00:00]} 22. Qh5 {[%emt 0:01:13]} Rxf7 {[%emt 0:00:00]} 23. Qxf7+ {[%emt 0:01:03]} Bd7 {[%emt 0:00:00]} 24. g5 {[%emt 0:00:28]} Ng7 {[%emt 0:00:00]} 25. gxh6 {[%emt 0:00:29]} Nf5 {[%emt 0:00:00]} 26. h7 {[%emt 0:00:21]} Nxd4 {[%emt 0:00:00]} 27. c3 {[%emt 0:01:18]} Nf5 {[%emt 0:00:00]} 28. Qg8 {[%emt 0:00:13]} Rxg8+ {[%emt 0:07:30]} 29. hxg8=Q {[%emt 1:22:27]} Nc8 {[%emt 0:00:00]} 30. Qg5 {[%emt 0:00:00]} Nce7 {[%emt 0:00:00]} 31. h4 {[%emt 0:00:00]} c5 {[%emt 0:00:00]} 32. h5 {[%emt 0:00:00]} Nc6 {[%emt 0:00:00]} 33. h6 {[%emt 0:00:00]} d4 {[%emt 0:00:00]} 34. h7 {[%emt 0:00:00]} Ne3 {[%emt 0:00:00]} 35. Bxe3 {[%emt 0:00:00]} 1-0